[Event "*** Titled Tuesday Blitz"]
[Site "Chess.com"]
[Date "2019.05.07"]
[Round "1"]
[White "WPWPWP-2015"]
[Black "Fins0905"]
[Result "1-0"]
[WhiteElo "2392"]
[BlackElo "2701"]
[TimeControl "180+2"]
[EndTime "13:09:40 PDT"]
[Termination "WPWPWP-2015 won by resignation"]

1. e4 {[%clk 0:03:01.4]} 1... d5 {[%clk 0:02:59.1]} 2. exd5 {[%clk 0:03:01.9]}
2... Qxd5 {[%clk 0:02:59.2]} 3. Nc3 {[%clk 0:03:02.9]} 3... Qa5 {[%clk 0:02:59]}
4. Rb1 {[%clk 0:03:04]} 4... c6 {[%clk 0:02:49.6]} 5. b4 {[%clk 0:03:04.4]} 5...
Qc7 {[%clk 0:02:50.7]} 6. Nf3 {[%clk 0:03:03.2]} 6... Nf6 {[%clk 0:02:51.4]} 7.
g3 {[%clk 0:03:03.4]} 7... Bg4 {[%clk 0:02:51.3]} 8. Bg2 {[%clk 0:03:04.1]} 8...
e6 {[%clk 0:02:52.5]} 9. O-O {[%clk 0:03:04.9]} 9... Be7 {[%clk 0:02:49.1]} 10.
d4 {[%clk 0:03:05.6]} 10... O-O {[%clk 0:02:48.8]} 11. Bf4 {[%clk 0:03:05.8]}
11... Qd8 {[%clk 0:02:47.4]} 12. h3 {[%clk 0:03:06]} 12... Bh5 {[%clk
0:02:48.2]} 13. b5 {[%clk 0:03:01.2]} 13... Nd5 {[%clk 0:02:40.5]} 14. Bd2
{[%clk 0:02:53.6]} 14... Nd7 {[%clk 0:02:26.7]} 15. bxc6 {[%clk 0:02:51.8]}
15... bxc6 {[%clk 0:02:28.6]} 16. g4 {[%clk 0:02:40.8]} 16... Bg6 {[%clk
0:02:29]} 17. Ne2 {[%clk 0:02:34.1]} 17... Bd6 {[%clk 0:02:09.6]} 18. Rb3 {[%clk
0:02:30.6]} 18... N7b6 {[%clk 0:02:03.5]} 19. Ba5 {[%clk 0:02:27.7]} 19... Qf6
{[%clk 0:01:58.2]} 20. Nd2 {[%clk 0:02:00.1]} 20... Nf4 {[%clk 0:01:46.5]} 21.
Nxf4 {[%clk 0:01:36.6]} 21... Qxf4 {[%clk 0:01:37.9]} 22. Nf3 {[%clk 0:01:37.5]}
22... Nc4 {[%clk 0:01:24.6]} 23. Bb4 {[%clk 0:01:37.6]} 23... h5 {[%clk
0:01:05.4]} 24. Bxd6 {[%clk 0:01:37.6]} 24... Qxd6 {[%clk 0:01:02.4]} 25. Rc3
{[%clk 0:01:36.4]} 25... hxg4 {[%clk 0:00:55.1]} 26. hxg4 {[%clk 0:01:23.4]}
26... Nb2 {[%clk 0:00:52.7]} 27. Qe2 {[%clk 0:01:10.9]} 27... Na4 {[%clk
0:00:48]} 28. Rc4 {[%clk 0:01:01.4]} 28... Nb6 {[%clk 0:00:47.1]} 29. Rc5 {[%clk
0:01:01.5]} 29... Qf4 {[%clk 0:00:33]} 30. Rxc6 {[%clk 0:00:54.3]} 30... Qxg4
{[%clk 0:00:32.5]} 31. Re1 {[%clk 0:00:47.8]} 31... Rac8 {[%clk 0:00:21.7]} 32.
Ne5 {[%clk 0:00:44.1]} 32... Qxe2 {[%clk 0:00:18.3]} 33. Rxe2 {[%clk 0:00:45.3]}
33... Bf5 {[%clk 0:00:19.6]} 34. c4 {[%clk 0:00:36.7]} 34... Rcd8 {[%clk
0:00:19]} 35. Rd2 {[%clk 0:00:34.8]} 35... f6 {[%clk 0:00:18.2]} 36. Nf3 {[%clk
0:00:35.5]} 36... Rd7 {[%clk 0:00:19.5]} 37. c5 {[%clk 0:00:31.8]} 37... Na4
{[%clk 0:00:16.7]} 38. Nh4 {[%clk 0:00:31.2]} 38... Rfd8 {[%clk 0:00:05.9]} 39.
Nxf5 {[%clk 0:00:31.2]} 39... exf5 {[%clk 0:00:07.8]} 40. d5 {[%clk 0:00:32.5]}
40... Kf7 {[%clk 0:00:08.1]} 41. d6 {[%clk 0:00:32.9]} 41... Nc3 {[%clk
0:00:08.9]} 42. Rd3 {[%clk 0:00:22.3]} 42... Ne4 {[%clk 0:00:08.5]} 43. Bf1
{[%clk 0:00:23.5]} 43... Ke6 {[%clk 0:00:09.3]} 44. f4 {[%clk 0:00:24.1]} 44...
Kf7 {[%clk 0:00:04.1]} 45. Rd5 {[%clk 0:00:23.3]} 45... Kg6 {[%clk 0:00:05]} 46.
Bd3 {[%clk 0:00:22.1]} 46... Rb7 {[%clk 0:00:05.3]} 47. Rc7 {[%clk 0:00:21.2]}
47... Rb2 {[%clk 0:00:04.4]} 48. d7 {[%clk 0:00:21.9]} 48... Kh5 {[%clk
0:00:03.8]} 49. Rc8 {[%clk 0:00:22.4]} 49... Rxd7 {[%clk 0:00:03.2]} 50. Rxd7
{[%clk 0:00:23.3]} 50... Kg4 {[%clk 0:00:04.8]} 51. Rxg7+ {[%clk 0:00:23]} 51...
Kf3 {[%clk 0:00:06]} 52. Bf1 {[%clk 0:00:22.2]} 52... Ng3 {[%clk 0:00:06.8]} 53.
Rcg8 {[%clk 0:00:21.5]} 53... Nxf1 {[%clk 0:00:03.8]} 54. Rg2 {[%clk 0:00:20.2]}
54... Rb1 {[%clk 0:00:03.4]} 55. Rf2+ {[%clk 0:00:21.3]} 55... Ke3 {[%clk
0:00:04.5]} 56. Rxf1 {[%clk 0:00:22.6]} 1-0

[Event "*** Titled Tuesday Blitz"]
[Site "Chess.com"]
[Date "2019.05.07"]
[Round "1"]
[White "slowdumbb"]
[Black "Thjop"]
[Result "1/2-1/2"]
[WhiteElo "2379"]
[BlackElo "2531"]
[TimeControl "180+2"]
[EndTime "13:09:43 PDT"]
[Termination "Game drawn - insufficient material"]

1. g3 {[%clk 0:03:01.9]} 1... Nf6 {[%clk 0:02:59.4]} 2. Bg2 {[%clk 0:03:02]}
2... g6 {[%clk 0:03:00.4]} 3. Nf3 {[%clk 0:03:03.9]} 3... Bg7 {[%clk 0:03:01.1]}
4. O-O {[%clk 0:03:04.2]} 4... O-O {[%clk 0:03:02]} 5. c4 {[%clk 0:03:03.9]}
5... d6 {[%clk 0:03:02.7]} 6. Nc3 {[%clk 0:03:02.6]} 6... Nc6 {[%clk 0:03:02.9]}
7. d3 {[%clk 0:03:03.9]} 7... e5 {[%clk 0:03:03.1]} 8. Rb1 {[%clk 0:03:05]} 8...
a5 {[%clk 0:03:03.9]} 9. a3 {[%clk 0:03:06.2]} 9... Nd4 {[%clk 0:03:00.7]} 10.
b4 {[%clk 0:03:03.8]} 10... axb4 {[%clk 0:02:56.5]} 11. axb4 {[%clk 0:03:05.7]}
11... c6 {[%clk 0:02:46]} 12. b5 {[%clk 0:03:06.3]} 12... d5 {[%clk 0:02:00.9]}
13. bxc6 {[%clk 0:03:02.6]} 13... Nxf3+ {[%clk 0:01:58.7]} 14. Bxf3 {[%clk
0:03:03.2]} 14... bxc6 {[%clk 0:02:00.2]} 15. Bg5 {[%clk 0:03:03.8]} 15... Be6
{[%clk 0:01:45.8]} 16. Qb3 {[%clk 0:03:02.9]} 16... dxc4 {[%clk 0:00:55.1]} 17.
dxc4 {[%clk 0:03:04.8]} 17... Rc8 {[%clk 0:00:52.2]} 18. Rfd1 {[%clk 0:03:03]}
18... Qa5 {[%clk 0:00:45.7]} 19. Na4 {[%clk 0:02:57.4]} 19... Qa6 {[%clk
0:00:14.8]} 20. Nc5 {[%clk 0:02:47.6]} 20... Qxc4 {[%clk 0:00:14]} 21. Nxe6
{[%clk 0:02:48.9]} 21... Qxb3 {[%clk 0:00:10.8]} 22. Rxb3 {[%clk 0:02:50.8]}
22... fxe6 {[%clk 0:00:08.5]} 23. Rc3 {[%clk 0:02:52.3]} 23... Nd5 {[%clk
0:00:08.3]} 24. Rc5 {[%clk 0:02:50.3]} 24... Bf6 {[%clk 0:00:08.9]} 25. Bh6
{[%clk 0:02:50.9]} 25... Rfd8 {[%clk 0:00:09.4]} 26. Rdc1 {[%clk 0:02:51.7]}
26... Ne7 {[%clk 0:00:09.8]} 27. h4 {[%clk 0:02:48.1]} 27... Kf7 {[%clk
0:00:10.3]} 28. Bxc6 {[%clk 0:02:47]} 28... Nf5 {[%clk 0:00:08.7]} 29. Bg5
{[%clk 0:02:23.2]} 29... Bxg5 {[%clk 0:00:09.4]} 30. hxg5 {[%clk 0:02:25.1]}
30... Ke7 {[%clk 0:00:09]} 31. Bf3 {[%clk 0:02:26.2]} 31... Nd6 {[%clk
0:00:06.5]} 32. Bc6 {[%clk 0:02:23.6]} 32... Rc7 {[%clk 0:00:07.1]} 33. Ba4
{[%clk 0:02:21]} 33... Rxc5 {[%clk 0:00:06.5]} 34. Rxc5 {[%clk 0:02:22.9]} 34...
e4 {[%clk 0:00:06.1]} 35. Rc7+ {[%clk 0:02:20.2]} 35... Kf8 {[%clk 0:00:06.4]}
36. Bb3 {[%clk 0:02:21.7]} 36... Nf7 {[%clk 0:00:06.4]} 37. Bxe6 {[%clk
0:02:04.9]} 37... Nxg5 {[%clk 0:00:07.2]} 38. Bc4 {[%clk 0:02:06.5]} 38... Re8
{[%clk 0:00:07.9]} 39. Kg2 {[%clk 0:02:07.4]} 39... Re7 {[%clk 0:00:09.2]} 40.
Rc8+ {[%clk 0:02:07.9]} 40... Kg7 {[%clk 0:00:10.3]} 41. Rg8+ {[%clk 0:02:09.2]}
41... Kf6 {[%clk 0:00:11.3]} 42. Rf8+ {[%clk 0:02:10.4]} 42... Ke5 {[%clk
0:00:12.6]} 43. Ra8 {[%clk 0:02:05.2]} 43... Kd4 {[%clk 0:00:12.9]} 44. Bg8
{[%clk 0:02:06.3]} 44... Ke5 {[%clk 0:00:13.4]} 45. Ra6 {[%clk 0:02:03.8]} 45...
Kd4 {[%clk 0:00:13.8]} 46. Ra5 {[%clk 0:02:01.4]} 46... Nf7 {[%clk 0:00:11.3]}
47. e3+ {[%clk 0:01:59.4]} 47... Kd3 {[%clk 0:00:10.7]} 48. Rd5+ {[%clk
0:02:00.2]} 48... Ke2 {[%clk 0:00:11]} 49. Rd4 {[%clk 0:01:57.2]} 49... Ng5
{[%clk 0:00:11.7]} 50. Bc4+ {[%clk 0:01:57.1]} 50... Ke1 {[%clk 0:00:13]} 51.
Bd5 {[%clk 0:01:55.6]} 51... Re5 {[%clk 0:00:13.4]} 52. g4 {[%clk 0:01:47.6]}
52... h5 {[%clk 0:00:14.5]} 53. gxh5 {[%clk 0:01:35.9]} 53... gxh5 {[%clk
0:00:16.4]} 54. Kg3 {[%clk 0:01:37.5]} 54... Re7 {[%clk 0:00:11.8]} 55. Bc6
{[%clk 0:01:25.3]} 55... Rg7 {[%clk 0:00:12.6]} 56. Kf4 {[%clk 0:01:22.8]} 56...
Ne6+ {[%clk 0:00:13.5]} 57. Kxe4 {[%clk 0:01:23.5]} 57... Nxd4 {[%clk
0:00:15.4]} 58. exd4 {[%clk 0:01:24.7]} 58... Kxf2 {[%clk 0:00:16.8]} 59. d5
{[%clk 0:01:26.1]} 59... h4 {[%clk 0:00:18.1]} 60. d6 {[%clk 0:01:27.1]} 60...
h3 {[%clk 0:00:19.4]} 61. Ke5 {[%clk 0:01:28.4]} 61... h2 {[%clk 0:00:20]} 62.
Ke6 {[%clk 0:01:29.1]} 62... Rg2 {[%clk 0:00:20.2]} 63. Bxg2 {[%clk 0:01:04.7]}
63... Kxg2 {[%clk 0:00:22.1]} 64. d7 {[%clk 0:01:06.3]} 64... h1=Q {[%clk
0:00:22.9]} 65. d8=Q {[%clk 0:01:08.2]} 65... Qh3+ {[%clk 0:00:23.7]} 66. Ke7
{[%clk 0:01:07.4]} 66... Qh4+ {[%clk 0:00:24.4]} 67. Ke8 {[%clk 0:01:08.6]}
67... Qh8+ {[%clk 0:00:24.3]} 68. Kd7 {[%clk 0:01:09.4]} 68... Qd4+ {[%clk
0:00:25.1]} 69. Ke8 {[%clk 0:01:10.7]} 69... Qe5+ {[%clk 0:00:20.6]} 70. Qe7
{[%clk 0:01:11.5]} 70... Qxe7+ {[%clk 0:00:21.6]} 71. Kxe7 {[%clk 0:01:12.3]}
1/2-1/2

[Event "*** Titled Tuesday Blitz"]
[Site "Chess.com"]
[Date "2019.05.07"]
[Round "1"]
[White "Cruel_Yaro"]
[Black "adriangschnitzer"]
[Result "0-1"]
[WhiteElo "2748"]
[BlackElo "2422"]
[TimeControl "180+2"]
[EndTime "13:09:57 PDT"]
[Termination "adriangschnitzer won on time"]

1. e3 {[%clk 0:02:56.9]} 1... d5 {[%clk 0:03:00.1]} 2. d4 {[%clk 0:02:57.2]}
2... Nf6 {[%clk 0:03:00.8]} 3. Nf3 {[%clk 0:02:58.7]} 3... c5 {[%clk 0:03:01.2]}
4. dxc5 {[%clk 0:02:58.7]} 4... Nc6 {[%clk 0:02:58.9]} 5. a3 {[%clk 0:02:57.4]}
5... a5 {[%clk 0:02:59]} 6. Bb5 {[%clk 0:02:57.5]} 6... e6 {[%clk 0:02:49.7]} 7.
Ne5 {[%clk 0:02:55.1]} 7... Bd7 {[%clk 0:02:49]} 8. Nxd7 {[%clk 0:02:54.2]} 8...
Qxd7 {[%clk 0:02:50.9]} 9. O-O {[%clk 0:02:49.2]} 9... Bxc5 {[%clk 0:02:50.8]}
10. c4 {[%clk 0:02:48.6]} 10... O-O {[%clk 0:02:49.1]} 11. Nc3 {[%clk
0:02:47.9]} 11... Rfd8 {[%clk 0:02:46.9]} 12. cxd5 {[%clk 0:02:46.7]} 12... Nxd5
{[%clk 0:02:47.1]} 13. Nxd5 {[%clk 0:02:46.5]} 13... Qxd5 {[%clk 0:02:49]} 14.
Qxd5 {[%clk 0:02:46.8]} 14... Rxd5 {[%clk 0:02:50.9]} 15. Be2 {[%clk 0:02:43.4]}
15... Rad8 {[%clk 0:02:31]} 16. b3 {[%clk 0:02:41.4]} 16... R5d7 {[%clk
0:02:25.1]} 17. Rb1 {[%clk 0:02:40]} 17... f6 {[%clk 0:02:18.8]} 18. Bb5 {[%clk
0:02:34.3]} 18... Rd1 {[%clk 0:02:16.1]} 19. Bb2 {[%clk 0:02:29.7]} 19... Rxb1
{[%clk 0:02:13.9]} 20. Rxb1 {[%clk 0:02:30.1]} 20... Kf7 {[%clk 0:02:10.2]} 21.
Kf1 {[%clk 0:02:29.6]} 21... Ne5 {[%clk 0:01:53.4]} 22. Ke2 {[%clk 0:02:29.8]}
22... b6 {[%clk 0:01:41.7]} 23. h3 {[%clk 0:02:27.5]} 23... h5 {[%clk
0:01:37.4]} 24. b4 {[%clk 0:02:26.7]} 24... axb4 {[%clk 0:01:33.6]} 25. axb4
{[%clk 0:02:28.6]} 25... Be7 {[%clk 0:01:18.6]} 26. Bd4 {[%clk 0:02:29.6]} 26...
Rd5 {[%clk 0:01:12.4]} 27. Ba6 {[%clk 0:02:24.7]} 27... b5 {[%clk 0:01:09.2]}
28. f4 {[%clk 0:02:17.6]} 28... Nc6 {[%clk 0:01:03.9]} 29. Bc3 {[%clk
0:02:18.7]} 29... Nb8 {[%clk 0:01:01.3]} 30. e4 {[%clk 0:02:16.2]} 30... Rd7
{[%clk 0:00:49.6]} 31. Bxb5 {[%clk 0:02:16.5]} 31... Rc7 {[%clk 0:00:51.5]} 32.
Bd2 {[%clk 0:02:15.4]} 32... Rb7 {[%clk 0:00:51]} 33. Bc4 {[%clk 0:02:14.2]}
33... Nc6 {[%clk 0:00:48.9]} 34. b5 {[%clk 0:02:14.1]} 34... Nd4+ {[%clk
0:00:49.6]} 35. Kf1 {[%clk 0:02:12.4]} 35... Bc5 {[%clk 0:00:49.8]} 36. f5
{[%clk 0:02:11.9]} 36... Ke7 {[%clk 0:00:50.1]} 37. fxe6 {[%clk 0:02:12]} 37...
Nxe6 {[%clk 0:00:52]} 38. Bd5 {[%clk 0:02:12.6]} 38... Rb8 {[%clk 0:00:47.1]}
39. Bc3 {[%clk 0:02:02.5]} 39... Nd4 {[%clk 0:00:40.5]} 40. Bc4 {[%clk
0:02:02.4]} 40... Kd6 {[%clk 0:00:35.8]} 41. Bd3 {[%clk 0:01:56.2]} 41... h4
{[%clk 0:00:34.6]} 42. Be1 {[%clk 0:01:52.5]} 42... g5 {[%clk 0:00:35.2]} 43.
Bd2 {[%clk 0:01:40.3]} 43... Ke5 {[%clk 0:00:35.7]} 44. Be3 {[%clk 0:01:36.5]}
44... Bb6 {[%clk 0:00:35.1]} 45. Bg1 {[%clk 0:01:34.7]} 45... Rc8 {[%clk
0:00:33.8]} 46. Bh2+ {[%clk 0:01:34.3]} 46... Ke6 {[%clk 0:00:35]} 47. Bg1
{[%clk 0:01:30.1]} 47... Rc3 {[%clk 0:00:35.3]} 48. Rd1 {[%clk 0:01:30.5]} 48...
Ke5 {[%clk 0:00:32.7]} 49. Bh2+ {[%clk 0:01:27.9]} 49... Ke6 {[%clk 0:00:33.5]}
50. Bb1 {[%clk 0:01:24.5]} 50... Nxb5 {[%clk 0:00:29.7]} 51. Ba2+ {[%clk
0:01:25.1]} 51... Ke7 {[%clk 0:00:27.4]} 52. Rb1 {[%clk 0:01:26.4]} 52... Na3
{[%clk 0:00:21.6]} 53. Rxb6 {[%clk 0:01:24.6]} 53... Rc1+ {[%clk 0:00:22.6]} 54.
Kf2 {[%clk 0:01:24.7]} 54... Rc2+ {[%clk 0:00:24.5]} 55. Kf3 {[%clk 0:01:25.6]}
55... Rxa2 {[%clk 0:00:26.4]} 56. Bd6+ {[%clk 0:01:26]} 56... Kf7 {[%clk
0:00:27.2]} 57. Ra6 {[%clk 0:01:26.7]} 57... Nc4 {[%clk 0:00:22]} 58. Rxa2
{[%clk 0:01:17.9]} 58... Nxd6 {[%clk 0:00:23.2]} 0-1

[Event "*** Titled Tuesday Blitz"]
[Site "Chess.com"]
[Date "2019.05.07"]
[Round "1"]
[White "akhairat"]
[Black "IakovUlivar"]
[Result "0-1"]
[WhiteElo "2218"]
[BlackElo "2548"]
[TimeControl "180+2"]
[EndTime "13:10:08 PDT"]
[Termination "IakovUlivar won on time"]

1. Nf3 {[%clk 0:02:29.5]} 1... Nf6 {[%clk 0:02:59.7]} 2. g3 {[%clk 0:02:30.1]}
2... g6 {[%clk 0:03:00.1]} 3. Bg2 {[%clk 0:02:29.7]} 3... Bg7 {[%clk 0:03:02]}
4. O-O {[%clk 0:02:29.9]} 4... O-O {[%clk 0:03:03.9]} 5. d3 {[%clk 0:02:28.9]}
5... d5 {[%clk 0:02:48.7]} 6. Nbd2 {[%clk 0:02:30.8]} 6... Nc6 {[%clk 0:02:49]}
7. e4 {[%clk 0:02:14]} 7... dxe4 {[%clk 0:02:49.7]} 8. dxe4 {[%clk 0:02:15.9]}
8... e5 {[%clk 0:02:49.9]} 9. Re1 {[%clk 0:02:14.7]} 9... Be6 {[%clk 0:02:43.1]}
10. c3 {[%clk 0:01:59.5]} 10... a5 {[%clk 0:02:44]} 11. Qe2 {[%clk 0:01:55.3]}
11... h6 {[%clk 0:02:23.5]} 12. Nc4 {[%clk 0:01:51.4]} 12... Nd7 {[%clk
0:01:53.8]} 13. Ne3 {[%clk 0:01:32.3]} 13... a4 {[%clk 0:01:39.7]} 14. Rd1
{[%clk 0:01:31.4]} 14... Qc8 {[%clk 0:01:23.6]} 15. Nd5 {[%clk 0:01:32.1]} 15...
Re8 {[%clk 0:01:20.3]} 16. Nd2 {[%clk 0:01:28.7]} 16... Na5 {[%clk 0:01:08.4]}
17. b4 {[%clk 0:01:21.4]} 17... axb3 {[%clk 0:01:00.9]} 18. axb3 {[%clk
0:01:08.4]} 18... c6 {[%clk 0:01:01.5]} 19. Rxa5 {[%clk 0:00:50.7]} 19... Rxa5
{[%clk 0:00:59.3]} 20. Nc4 {[%clk 0:00:51.6]} 20... cxd5 {[%clk 0:00:21.1]} 21.
exd5 {[%clk 0:00:52.2]} 21... Ra6 {[%clk 0:00:17.3]} 22. dxe6 {[%clk 0:00:53]}
22... Raxe6 {[%clk 0:00:09.1]} 23. Nd6 {[%clk 0:00:53.6]} 23... Rxd6 {[%clk
0:00:09]} 24. Rxd6 {[%clk 0:00:55.5]} 24... Nc5 {[%clk 0:00:08.2]} 25. Qc4
{[%clk 0:00:56.6]} 25... Ne6 {[%clk 0:00:05.3]} 26. Qxc8 {[%clk 0:00:55.4]}
26... Rxc8 {[%clk 0:00:07.2]} 27. Bd2 {[%clk 0:00:55.1]} 27... Rc7 {[%clk
0:00:07.2]} 28. Rb6 {[%clk 0:00:53.6]} 28... Nd8 {[%clk 0:00:07.2]} 29. Bd5
{[%clk 0:00:49]} 29... Kf8 {[%clk 0:00:07.3]} 30. c4 {[%clk 0:00:49.6]} 30...
Nc6 {[%clk 0:00:07.2]} 31. Be3 {[%clk 0:00:47.8]} 31... Ke7 {[%clk 0:00:07.4]}
32. Bc5+ {[%clk 0:00:47.2]} 32... Ke8 {[%clk 0:00:07.5]} 33. Rxb7 {[%clk
0:00:34.8]} 33... Kd7 {[%clk 0:00:03.1]} 34. Rxc7+ {[%clk 0:00:33.3]} 34... Kxc7
{[%clk 0:00:05]} 35. Bxf7 {[%clk 0:00:28.6]} 35... g5 {[%clk 0:00:06.2]} 36. Bd5
{[%clk 0:00:26.5]} 36... Nd4 {[%clk 0:00:06.8]} 37. Bxd4 {[%clk 0:00:27.7]}
37... exd4 {[%clk 0:00:08.7]} 38. Kf1 {[%clk 0:00:28.7]} 38... Bf8 {[%clk
0:00:09.2]} 39. Ke2 {[%clk 0:00:29.4]} 39... Kd6 {[%clk 0:00:06.8]} 40. Kd3
{[%clk 0:00:29.6]} 40... Ke5 {[%clk 0:00:07.9]} 41. Bg2 {[%clk 0:00:27]} 41...
Bc5 {[%clk 0:00:08.3]} 42. h3 {[%clk 0:00:23.3]} 42... Kf5 {[%clk 0:00:07.3]}
43. Bf3 {[%clk 0:00:23.4]} 43... Bb4 {[%clk 0:00:09.2]} 44. Kxd4 {[%clk
0:00:21.4]} 44... Be1 {[%clk 0:00:10.4]} 45. Bg4+ {[%clk 0:00:18.8]} 45... Kf6
{[%clk 0:00:11.7]} 46. Ke3 {[%clk 0:00:13.9]} 46... Bb4 {[%clk 0:00:13]} 47. f4
{[%clk 0:00:07.4]} 47... gxf4+ {[%clk 0:00:12.1]} 48. gxf4 {[%clk 0:00:04.4]}
48... Bd6 {[%clk 0:00:12.9]} 49. Ke4 {[%clk 0:00:02.7]} 49... Ke7 {[%clk
0:00:14.2]} 50. Be2 {[%clk 0:00:02]} 50... Kf6 {[%clk 0:00:14.4]} 0-1

[Event "*** Titled Tuesday Blitz"]
[Site "Chess.com"]
[Date "2019.05.07"]
[Round "1"]
[White "Benjoneliere44"]
[Black "Shant_Sargsyan"]
[Result "0-1"]
[WhiteElo "2496"]
[BlackElo "2955"]
[TimeControl "180+2"]
[EndTime "13:10:16 PDT"]
[Termination "Shant_Sargsyan won by resignation"]

1. Nf3 {[%clk 0:03:01.9]} 1... d5 {[%clk 0:02:59.6]} 2. c4 {[%clk 0:03:01.8]}
2... e6 {[%clk 0:03:00.5]} 3. e3 {[%clk 0:02:57.2]} 3... Nf6 {[%clk 0:03:00.6]}
4. b3 {[%clk 0:02:57.5]} 4... b6 {[%clk 0:03:01.7]} 5. Bb2 {[%clk 0:02:58.5]}
5... Bb7 {[%clk 0:03:03.1]} 6. Be2 {[%clk 0:02:58.4]} 6... Bd6 {[%clk
0:03:03.9]} 7. O-O {[%clk 0:02:58.9]} 7... O-O {[%clk 0:03:04.3]} 8. d3 {[%clk
0:02:59.2]} 8... Nbd7 {[%clk 0:03:05.6]} 9. Nbd2 {[%clk 0:03:00.2]} 9... Qe7
{[%clk 0:03:06.6]} 10. Qc2 {[%clk 0:03:01.1]} 10... c5 {[%clk 0:03:07.5]} 11.
Rfd1 {[%clk 0:02:56.8]} 11... Rac8 {[%clk 0:03:08.4]} 12. Nf1 {[%clk 0:02:57]}
12... e5 {[%clk 0:03:09]} 13. Ng3 {[%clk 0:02:57.6]} 13... d4 {[%clk 0:03:10.1]}
14. Nf5 {[%clk 0:02:55.5]} 14... Qe6 {[%clk 0:03:11.1]} 15. e4 {[%clk
0:02:42.9]} 15... Bb8 {[%clk 0:03:06.7]} 16. Bc1 {[%clk 0:02:29.5]} 16... g6
{[%clk 0:02:56.7]} 17. Ng3 {[%clk 0:02:28.6]} 17... Kg7 {[%clk 0:02:49.2]} 18.
Bd2 {[%clk 0:02:24.4]} 18... Qe7 {[%clk 0:02:34.2]} 19. Rf1 {[%clk 0:02:23.6]}
19... Rh8 {[%clk 0:02:28]} 20. Nh4 {[%clk 0:02:23.7]} 20... Qe6 {[%clk
0:01:42.1]} 21. Qc1 {[%clk 0:02:14]} 21... h5 {[%clk 0:01:42.8]} 22. f4 {[%clk
0:02:07.3]} 22... exf4 {[%clk 0:01:43.8]} 23. Bxf4 {[%clk 0:02:09.2]} 23... Bxf4
{[%clk 0:01:45.1]} 24. Qxf4 {[%clk 0:02:09.3]} 24... Qe5 {[%clk 0:01:46.6]} 25.
Ngf5+ {[%clk 0:01:40.2]} 25... gxf5 {[%clk 0:01:40.5]} 26. Qg5+ {[%clk
0:01:41.3]} 26... Kf8 {[%clk 0:01:35.5]} 27. Rxf5 {[%clk 0:01:41.3]} 27... Qe7
{[%clk 0:01:12.6]} 28. Raf1 {[%clk 0:01:41.6]} 28... Rc6 {[%clk 0:01:14]} 29. e5
{[%clk 0:01:40]} 29... Ke8 {[%clk 0:01:02.1]} 30. Bf3 {[%clk 0:01:32.5]} 30...
Ng4 {[%clk 0:00:52]} 31. Qxe7+ {[%clk 0:01:27.1]} 31... Kxe7 {[%clk 0:00:52.3]}
32. Rxf7+ {[%clk 0:01:13.3]} 32... Kxf7 {[%clk 0:00:42.7]} 33. Bxc6+ {[%clk
0:01:13.8]} 33... Ke6 {[%clk 0:00:42.1]} 34. Bxb7 {[%clk 0:01:13.7]} 34... Ndxe5
{[%clk 0:00:43.6]} 35. Be4 {[%clk 0:01:07.4]} 35... Ne3 {[%clk 0:00:39.9]} 36.
Rf2 {[%clk 0:01:05.9]} 36... a6 {[%clk 0:00:28.4]} 37. Nf5 {[%clk 0:01:01.3]}
37... N5g4 {[%clk 0:00:29.6]} 38. Ng7+ {[%clk 0:00:58]} 38... Ke5 {[%clk
0:00:30.1]} 39. Rf7 {[%clk 0:00:57.8]} 39... b5 {[%clk 0:00:24.8]} 40. h3 {[%clk
0:00:56.5]} 40... Nf6 {[%clk 0:00:18.8]} 41. Re7+ {[%clk 0:00:56.2]} 41... Kf4
{[%clk 0:00:19.4]} 42. Bf3 {[%clk 0:00:52.4]} 42... bxc4 {[%clk 0:00:13]} 43.
bxc4 {[%clk 0:00:54.3]} 43... Rg8 {[%clk 0:00:07.8]} 44. Ne6+ {[%clk 0:00:53]}
44... Kg3 {[%clk 0:00:09.3]} 45. Nxc5 {[%clk 0:00:52.6]} 45... Rb8 {[%clk
0:00:06.3]} 46. Rg7+ {[%clk 0:00:51]} 46... Kh4 {[%clk 0:00:07.7]} 47. Kh2
{[%clk 0:00:41.4]} 47... Nf1+ {[%clk 0:00:09.2]} 48. Kg1 {[%clk 0:00:42.7]}
48... Ng3 {[%clk 0:00:11.1]} 49. Nb3 {[%clk 0:00:42.7]} 49... Re8 {[%clk
0:00:11.6]} 50. Nd2 {[%clk 0:00:35.6]} 50... Rb8 {[%clk 0:00:04.6]} 51. Rxg3
{[%clk 0:00:29.7]} 51... Kxg3 {[%clk 0:00:05.5]} 52. Nf1+ {[%clk 0:00:31.6]}
52... Kf4 {[%clk 0:00:06.9]} 53. Kf2 {[%clk 0:00:32.2]} 53... h4 {[%clk
0:00:08.4]} 54. Be2 {[%clk 0:00:33]} 54... Rb2 {[%clk 0:00:09.7]} 55. g3+ {[%clk
0:00:33.9]} 55... hxg3+ {[%clk 0:00:11]} 56. Nxg3 {[%clk 0:00:35.8]} 56... Rxa2
{[%clk 0:00:12.7]} 57. h4 {[%clk 0:00:35]} 57... a5 {[%clk 0:00:13.9]} 58. h5
{[%clk 0:00:36.4]} 58... Kg5 {[%clk 0:00:15.5]} 59. h6 {[%clk 0:00:37.2]} 59...
Kxh6 {[%clk 0:00:16.5]} 60. Nf5+ {[%clk 0:00:38.4]} 60... Kg5 {[%clk 0:00:18.4]}
61. Nxd4 {[%clk 0:00:40.3]} 61... a4 {[%clk 0:00:20.3]} 62. Ke3 {[%clk
0:00:40.8]} 62... a3 {[%clk 0:00:21.8]} 63. Bd1 {[%clk 0:00:40.8]} 63... Rb2
{[%clk 0:00:21.2]} 64. Bb3 {[%clk 0:00:40.6]} 64... a2 {[%clk 0:00:21.9]} 65.
Bxa2 {[%clk 0:00:41.6]} 65... Rxa2 {[%clk 0:00:23.8]} 66. Ne6+ {[%clk 0:00:42]}
66... Kf5 {[%clk 0:00:25]} 67. Nd4+ {[%clk 0:00:42.9]} 67... Ke5 {[%clk
0:00:26.2]} 68. Nf3+ {[%clk 0:00:42.9]} 68... Kd6 {[%clk 0:00:27.6]} 0-1